bitfinex/quotes_SOLUSD_20241022
["timestamp","ask_amount","ask_price","bid_price","bid_amount"]
[1729606713968,20.0,168.48,168.42,0.6262297]
[1729606714254,5.9364,168.46,168.42,0.6262297]
[1729606714566,5.9366,168.45,168.42,0.6262297]
[1729606714751,5.9368,168.44,168.42,0.6262297]
[1729606715157,5.9371,168.43,168.42,0.6262297]
[1729606715656,6.37912157,168.51,168.42,0.6262297]
[1729606715864,14.8385,168.48,168.42,0.6262297]
[1729606716038,20.0,168.5,168.42,0.6262297]
[1729606716360,5.9371,168.43,168.42,0.6262297]
[1729606716750,26.0371,168.43,168.42,2.97e-05]
[1729606716942,26.1371,168.43,168.42,2.97e-05]
[1729606717149,5.941,168.33,168.25,15.8909297]
[1729606717358,5.9422,168.29,168.25,0.6262297]
[1729606717851,20.0,168.32,168.25,0.6262297]
[1729606718157,5.9431,168.26,168.25,0.6262297]
[1729606718350,14.8535,168.31,168.25,0.6262297]
[1729606718351,5.9427,168.28,168.25,0.6262297]
[1729606718762,14.8535,168.31,168.25,0.6262297]
[1729606718966,5.9429,168.27,168.25,0.6262297]
[1729606719164,5.9421,168.29,168.25,0.6262297]
[1729606719347,20.0,168.32,168.25,0.6262297]
[1729606719545,0.1,168.32,168.25,0.6262297]
[1729606719856,49.919984,168.26,168.25,0.6262297]
[1729606720060,25.9431,168.26,168.25,0.6262297]
[1729606721368,49.719984,168.26,168.25,0.6262297]
[1729606722043,49.819984,168.26,168.25,0.6262297]
[1729606722661,49.919984,168.26,168.25,0.6262297]
[1729606722852,49.819984,168.26,168.25,0.6262297]
[1729606723263,79.919984,168.26,168.25,0.6262297]
[1729606723564,79.819984,168.26,168.25,0.6262297]
[1729606723865,55.9431,168.26,168.25,0.6262297]
[1729606724975,56.0431,168.26,168.25,0.6262297]
[1729606725274,79.719984,168.26,168.25,0.6262297]
[1729606725951,85.90375544,168.26,168.25,0.6262297]
[1729606726148,86.00375544,168.26,168.25,0.6262297]
[1729606726350,85.90375544,168.26,168.25,0.6262297]
[1729606726651,79.719984,168.26,168.25,0.6262297]
[1729606726843,55.9431,168.26,168.25,0.6262297]
[1729606727270,35.9431,168.26,168.25,0.6262297]
[1729606727848,5.9431,168.26,168.25,0.6262297]
[1729606728076,29.719984,168.26,168.25,0.6262297]
[1729606728265,29.819984,168.26,168.25,0.6262297]
[1729606728567,49.819984,168.26,168.25,2.97e-05]
[1729606728868,49.819984,168.26,168.08,0.6262297]
[1729606728869,5.947,168.16,168.08,0.6262297]
[1729606729076,20.1,168.22,168.08,0.6262297]
[1729606729369,14.8632,168.21,168.08,0.6262297]
[1729606729547,5.9464,168.17,168.08,0.6262297]
[1729606729749,5.946,168.18,168.08,0.6262297]
[1729606729946,5.9463,168.17,168.08,0.6262297]
[1729606730347,5.9453,168.2,168.09,93.776884]
[1729606731354,20.0,168.22,168.08,0.6262297]
[1729606731555,20.0,168.24,168.08,0.6262297]
[1729606731783,5.9467,168.17,168.08,0.6262297]
[1729606731980,14.8615,168.22,168.08,0.6262297]
[1729606732181,5.946,168.19,168.08,0.6262297]
[1729606732566,14.8615,168.22,168.08,0.6262297]
[1729606732771,5.9456,168.19,168.08,0.6262297]
[1729606735181,20.0,168.24,168.08,0.6262297]
[1729606735512,34.8589,168.25,168.1,43.76636868]
[1729606735785,5.9453,168.2,168.1,43.76636868]
[1729606735977,5.9457,168.19,168.1,43.76636868]
[1729606736279,20.0,168.23,168.1,43.76636868]
[1729606736485,5.9449,168.21,168.1,43.76636868]
[1729606737076,14.8572,168.27,168.11,93.776884]
[1729606737278,5.9447,168.22,168.11,93.776884]
[1729606737785,6.18742787,168.29,168.14,113.76636868]
[1729606737981,5.9439,168.24,168.14,113.76636868]
[1729606739266,14.8553,168.29,168.17,43.76636868]
[1729606739591,5.9463,168.17,168.08,44.39259838]
[1729606739785,5.946,168.18,168.08,44.39259838]
[1729606740093,5.946,168.18,168.08,0.6262297]
[1729606740472,5.9471,168.15,168.08,0.6262297]
[1729606740674,5.9466,168.17,168.08,0.6262297]
[1729606741070,5.9468,168.16,168.08,0.6262297]
[1729606741483,14.8632,168.2,168.08,0.6262297]
[1729606741685,5.9468,168.16,168.08,0.6262297]
[1729606742087,5.9474,168.15,168.08,0.6262297]
[1729606742390,5.9475,168.14,168.08,0.6262297]
[1729606742689,20.0,168.17,168.08,0.6262297]
[1729606742889,20.1,168.17,168.08,0.6262297]
[1729606743091,5.9491,168.09,168.08,0.6262297]
[1729606744493,25.9491,168.09,168.08,0.6262297]
[1729606745003,5.9488,168.11,168.08,0.6262297]
[1729606745197,25.9491,168.09,168.08,0.6262297]
[1729606745697,55.858784,168.09,168.08,0.6262297]
[1729606745988,20.0,168.09,168.08,0.6262297]
[1729606746581,20.0,168.13,168.08,0.6262297]
[1729606746795,25.948,168.13,168.08,0.6262297]
[1729606747379,20.0,168.15,168.08,0.6262297]
[1729606747685,5.9469,168.16,168.08,0.6262297]
[1729606747886,14.17282176,168.25,168.09,93.776884]
[1729606748077,5.9453,168.2,168.09,67.54325268]
[1729606748281,5.9442,168.24,168.12,23.776884]
[1729606748595,14.27282176,168.25,168.12,23.776884]
[1729606748777,24.61834307,168.29,168.15,23.776884]
[1729606748982,16.1109,168.29,168.15,23.776884]
[1729606749301,5.9432,168.26,168.15,23.776884]
[1729606749607,5.9399,168.36,168.22,93.776884]
[1729606749778,23.62784307,168.43,168.25,23.776884]
[1729606749985,6.18084011,168.35,168.25,93.776884]
[1729606750184,0.1,168.42,168.25,93.776884]
[1729606750185,5.9399,168.36,168.25,23.776884]
[1729606751990,8.50744307,168.42,168.25,93.776884]
[1729606752200,5.938,168.41,168.28,93.776884]
[1729606753001,5.9394,168.37,168.25,23.776884]
[1729606753476,6.1885,168.43,168.22,0.1]
[1729606753477,5.9402,168.35,168.23,43.76636868]
[1729606753680,5.9404,168.34,168.24,23.776884]
[1729606754312,38.721584,168.41,168.2,0.1]
[1729606754313,20.0,168.32,168.2,43.76636868]
[1729606754513,5.9422,168.29,168.18,70.0]
[1729606754714,20.0,168.3,168.18,70.0]
[1729606755011,20.0,168.32,168.16,60.26726868]
[1729606755185,5.9428,168.27,168.16,60.26726868]
[1729606755384,5.9427,168.28,168.16,60.26726868]
[1729606755677,5.9427,168.28,168.17,70.0]
[1729606756284,5.9428,168.27,168.16,60.26726868]
[1729606756509,5.9417,168.3,168.17,70.0]
[1729606756700,5.9417,168.3,168.2,43.76636868]
[1729606756905,20.0,168.31,168.16,60.26726868]
[1729606757081,0.1,168.3,168.16,43.76636868]
[1729606757285,23.876884,168.26,168.1,15.4506]
[1729606757612,5.9449,168.21,168.1,15.4506]
[1729606757794,5.9452,168.21,168.1,15.4506]
[1729606758110,14.8588,168.25,168.1,85.4506]
[1729606758408,5.9455,168.2,168.09,113.76636868]
[1729606758615,20.0,168.21,168.09,43.76636868]
[1729606758801,5.9462,168.18,168.09,43.76636868]
[1729606759391,5.9466,168.17,168.08,0.6262297]
[1729606759925,34.8606,168.23,168.08,0.6262297]
[1729606759926,5.9467,168.16,168.08,0.6262297]
[1729606760213,20.0,168.17,168.08,0.6262297]
[1729606760423,5.9486,168.11,168.08,0.6262297]
[1729606760591,5.9488,168.1,168.08,0.6262297]
[1729606761013,5.948,168.13,168.08,0.6262297]
[1729606761313,5.9467,168.16,168.08,0.6262297]
[1729606761608,0.1,168.21,168.08,0.6262297]
[1729606761790,5.9467,168.16,168.08,0.6262297]
[1729606762402,14.8625,168.21,168.08,0.6262297]
[1729606762614,20.0,168.19,168.08,0.6262297]
[1729606762914,6.578,168.23,168.09,23.776884]
[1729606763110,0.1,168.21,168.08,0.6262297]
[1729606763316,14.8644,168.19,168.08,0.6262297]
[1729606763490,5.9481,168.12,168.08,0.6262297]
[1729606763886,5.9477,168.14,168.08,0.6262297]
[1729606764087,0.1,168.19,168.08,0.6262297]
[1729606764315,0.1,168.17,168.08,0.6262297]
[1729606764691,5.9487,168.11,168.08,0.6262297]
[1729606764910,20.0,168.14,168.08,0.6262297]
[1729606765108,5.9488,168.1,168.08,0.6262297]
[1729606765618,20.1,168.19,168.08,0.6262297]
[1729606765914,5.9477,168.13,168.08,0.6262297]
[1729606767122,20.0,168.19,168.08,0.6262297]
[1729606767294,20.0,168.16,168.08,0.6262297]
[1729606768000,5.9489,168.1,168.08,0.6262297]
[1729606769109,5.9491,168.09,168.08,0.6262297]
[1729606769829,25.9491,168.09,168.08,0.6262297]
[1729606771298,5.9476,168.14,168.08,0.6262297]
[1729606771515,5.9475,168.14,168.08,0.6262297]
[1729606771806,5.9488,168.1,168.08,0.6262297]
[1729606772108,5.9491,168.09,168.08,0.6262297]
[1729606773525,25.9491,168.09,168.08,0.6262297]
[1729606774222,5.9491,168.09,168.08,0.6262297]
[1729606776007,49.725984,168.09,168.08,0.6262297]
[1729606776608,49.825984,168.09,168.08,2.97e-05]
[1729606777324,49.825984,168.09,167.94,6.163]
[1729606777325,20.0,168.05,167.91,0.6262297]
[1729606777633,20.1,168.05,167.91,0.6262297]
[1729606777808,17.83,168.04,167.91,0.6262297]
[1729606778139,5.9534,167.98,167.91,0.6262297]
[1729606778425,5.9538,167.96,167.91,0.6262297]
[1729606779408,5.9545,167.94,167.91,0.6262297]
[1729606780207,5.9552,167.92,167.91,0.6262297]
[1729606781707,29.7636,167.99,167.91,0.6262297]
[1729606781909,5.9524,168.0,167.91,0.6262297]
[1729606782115,14.878,168.04,167.91,0.6262297]
[1729606782412,5.9527,167.99,167.91,0.6262297]
[1729606782715,14.8782,168.03,167.91,0.6262297]
[1729606782917,5.9527,167.99,167.91,0.6262297]
[1729606783435,53.529884,168.05,167.91,0.6262297]
[1729606783613,5.9506,168.05,167.91,0.6262297]
[1729606783807,30.0,168.09,167.94,21.9791]
[1729606784031,5.9502,168.06,167.96,43.76636868]
[1729606784238,5.9516,168.03,167.94,21.9791]
[1729606784543,30.0,168.09,167.96,70.0]
[1729606784827,5.9502,168.07,167.97,23.776884]
[1729606785034,5.9505,168.06,167.97,23.776884]
[1729606785829,5.9498,168.08,167.99,43.76636868]
[1729606786136,5.9499,168.07,167.97,23.776884]
[1729606786312,5.9499,168.07,167.96,113.86636868]
[1729606786313,12.209,168.13,168.02,23.776884]
[1729606786515,6.261,168.13,168.02,43.76636868]
[1729606786729,5.9491,168.1,168.02,43.76636868]
[1729606787139,5.9492,168.09,167.99,43.76636868]
[1729606787338,6.261,168.13,167.99,43.76636868]
[1729606787541,6.261,168.13,167.96,43.76636868]
[1729606787837,14.8712,168.11,167.95,70.0]
[1729606788243,20.0,168.1,167.98,43.76636868]
[1729606788544,5.9495,168.09,167.98,43.76636868]
[1729606788759,25.949,168.1,167.99,70.0]
[1729606789046,25.949,168.1,168.01,43.76636868]
[1729606789047,5.949,168.1,168.01,43.76636868]
[1729606789412,6.261,168.13,168.01,43.76636868]
[1729606789629,5.9492,168.09,168.01,43.76636868]
[1729606789825,5.9499,168.07,167.97,70.0]
[1729606790048,5.9499,168.07,167.98,43.76636868]
[1729606790644,20.0,168.12,168.01,43.76636868]
[1729606790814,20.0,168.12,167.99,93.776884]
[1729606791015,5.9491,168.1,168.01,43.76636868]
[1729606791929,6.18973455,168.16,168.07,113.76636868]
[1729606792126,5.9492,168.09,168.04,43.76636868]
[1729606792327,14.8647,168.19,168.06,43.76636868]
[1729606792630,5.9475,168.14,168.06,43.76636868]
[1729606793152,14.8647,168.19,168.01,43.86636868]
[1729606793153,5.9488,168.11,168.01,43.76636868]
[1729606793358,5.9488,168.11,168.01,43.86636868]
[1729606793526,5.9488,168.1,168.01,43.76636868]
[1729606793946,5.9498,168.08,168.01,43.76636868]
[1729606794154,5.9498,168.08,167.97,23.776884]
[1729606794452,5.9504,168.06,167.97,43.76636868]
[1729606794648,20.0,168.1,167.97,43.76636868]
[1729606794831,5.9508,168.05,167.97,43.76636868]
[1729606795030,5.9514,168.03,167.97,43.76636868]
[1729606795234,34.8739,168.08,167.97,43.76636868]
[1729606795735,5.9509,168.04,167.97,43.76636868]
[1729606796452,25.9497,168.08,167.97,43.76636868]
[1729606796827,14.8713,168.11,167.97,43.76636868]
[1729606796828,20.0,168.1,167.97,43.76636868]
[1729606797235,20.0,168.11,167.97,43.76636868]
[1729606797438,5.9488,168.1,168.0,43.76636868]
[1729606797637,5.9492,168.09,168.0,43.76636868]
[1729606797840,5.9484,168.11,168.0,43.76636868]
[1729606798132,6.1646,168.12,168.0,43.76636868]
[1729606798330,5.9495,168.08,168.0,43.76636868]
[1729606798543,6.1646,168.12,167.97,43.76636868]
[1729606798766,5.9511,168.04,167.97,43.76636868]
[1729606799644,5.9513,168.03,167.97,43.76636868]
[1729606799863,5.9519,168.02,167.94,65.74546868]
[1729606800048,5.9525,168.0,167.94,65.74546868]
[1729606800232,5.9526,168.0,167.94,43.76636868]
[1729606800431,37.87,168.09,167.91,44.39259838]
[1729606800432,5.9532,167.98,167.91,44.39259838]
[1729606800750,20.0,168.09,167.91,44.39259838]
[1729606800751,14.8758,168.06,167.91,44.39259838]
[1729606800927,5.9528,167.99,167.91,44.39259838]
[1729606801131,5.953,167.99,167.91,44.39259838]
[1729606801350,5.9531,167.98,167.91,44.39259838]
[1729606802257,5.9527,167.99,167.91,44.39259838]
[1729606802554,5.9521,168.01,167.92,23.776884]
[1729606802744,5.9513,168.03,167.94,43.76636868]
[1729606803958,5.9526,168.0,167.91,44.39259838]
[1729606804263,5.9526,168.0,167.92,23.776884]
[1729606804561,5.9528,167.99,167.92,23.776884]
[1729606805064,5.9531,167.98,167.91,27.86148426]
[1729606805553,5.953,167.99,167.91,27.86148426]
[1729606806159,5.9537,167.97,167.91,0.6262297]
[1729606806453,5.9537,167.96,167.91,0.6262297]
[1729606806769,20.0,167.97,167.91,0.6262297]
[1729606806998,25.9552,167.92,167.91,0.6262297]
[1729606807672,49.732084,167.92,167.91,0.6262297]
[1729606808178,25.9552,167.92,167.91,0.6262297]
[1729606808585,49.732084,167.92,167.91,0.6262297]
[1729606811457,25.9552,167.92,167.91,0.6262297]
[1729606811892,49.732084,167.92,167.91,0.6262297]
[1729606813490,14.8844,167.96,167.91,0.6262297]
[1729606813661,5.9548,167.93,167.91,0.6262297]
[1729606813861,5.9544,167.95,167.91,0.6262297]
[1729606814058,6.1889896,167.98,167.91,0.6262297]
[1729606814360,22.2466,168.0,167.91,0.6262297]
[1729606814589,5.9548,167.94,167.91,0.6262297]
[1729606814881,28.43646213,168.0,167.91,0.6262297]
[1729606815081,5.9552,167.92,167.91,0.6262297]
[1729606815585,25.9552,167.92,167.91,0.6262297]
[1729606816676,49.732084,167.92,167.91,0.6262297]
[1729606816986,20.0,167.92,167.91,0.6262297]
[1729606818192,25.9552,167.92,167.91,0.6262297]
[1729606818564,20.0,167.92,167.91,0.6262297]
[1729606818759,28.43646213,168.0,167.91,0.6262297]
[1729606818976,37.1277,168.0,167.91,0.6262297]
[1729606819280,5.9552,167.92,167.91,0.6262297]
[1729606819479,6.2216,168.0,167.91,0.6262297]
[1729606819678,5.9548,167.94,167.91,0.6262297]
[1729606819884,5.9552,167.92,167.91,0.6262297]
[1729606820585,25.9552,167.92,167.91,0.6262297]
[1729606821282,49.732084,167.92,167.91,0.6262297]
[1729606821903,25.9552,167.92,167.91,0.6262297]
[1729606822791,49.732084,167.92,167.91,0.6262297]
[1729606822974,49.732084,167.92,167.91,2.97e-05]
[1729606823177,49.932084,167.92,167.91,2.97e-05]
[1729606823699,23.776884,167.86,167.77,6.4616]
[1729606823882,5.9594,167.81,167.74,17.0978297]
[1729606824800,20.0,167.84,167.74,17.0978297]
[1729606825103,20.0,167.82,167.74,0.6262297]
[1729606825314,20.0,167.78,167.74,0.6262297]
[1729606825491,25.9612,167.75,167.74,0.6262297]
[1729606826781,5.9584,167.84,167.74,0.6262297]
[1729606826976,5.9566,167.88,167.74,0.6262297]
[1729606827314,8.06442061,167.89,167.74,0.6262297]
[1729606827482,5.9583,167.84,167.74,0.6262297]
[1729606827879,5.9591,167.81,167.74,0.6262297]
[1729606828104,5.9597,167.8,167.74,0.6262297]
[1729606828583,14.8933,167.86,167.74,0.6262297]
[1729606829276,20.0,167.84,167.74,0.6262297]
[1729606829479,20.0,167.81,167.74,0.6262297]
[1729606829684,5.9584,167.83,167.74,0.6262297]
[1729606829885,20.0,167.84,167.74,0.6262297]
[1729606830285,20.0,167.82,167.74,0.6262297]
[1729606830691,5.9591,167.81,167.74,0.6262297]
[1729606830893,20.0,167.82,167.74,0.6262297]
[1729606832101,20.0,167.86,167.74,0.6262297]
[1729606832293,6.1886196,167.88,167.74,0.6262297]
[1729606832500,21.5542,167.91,167.75,71.11213856]
[1729606832686,6.7645,167.91,167.74,0.6262297]
[1729606832891,5.9587,167.82,167.74,0.6262297]
[1729606833189,14.8915,167.88,167.76,18.48]
[1729606833388,14.8915,167.88,167.74,0.6262297]
[1729606833613,5.9581,167.84,167.74,0.6262297]
[1729606833791,5.9584,167.83,167.74,0.6262297]
[1729606834489,43.776884,167.84,167.74,0.6262297]
[1729606834690,5.9601,167.79,167.74,0.6262297]
[1729606834907,20.0,167.82,167.74,0.6262297]
[1729606835491,0.1,167.89,167.74,0.6262297]
[1729606835686,0.1,167.87,167.74,0.6262297]
[1729606836099,23.776884,167.83,167.74,0.6262297]
[1729606836290,5.9605,167.78,167.74,0.6262297]
[1729606836490,23.776884,167.83,167.74,0.6262297]
[1729606836717,5.9605,167.78,167.74,0.6262297]
[1729606837146,5.9612,167.76,167.74,0.6262297]
[1729606837308,14.8986,167.8,167.74,0.6262297]
[1729606837512,20.0,167.82,167.74,0.6262297]
[1729606837730,20.0,167.82,167.7,20.1]
[1729606837731,5.9589,167.82,167.7,20.1]
[1729606838230,5.9589,167.82,167.71,23.776884]
[1729606838434,6.6645,167.91,167.72,20.0]
[1729606838626,5.958,167.84,167.73,23.776884]
[1729606838824,6.6645,167.91,167.75,29.996284]
[1729606839012,5.9567,167.88,167.75,30.096284]
[1729606839428,6.6645,167.91,167.75,30.096284]
[1729606839429,6.6645,167.91,167.75,29.996284]
[1729606839717,5.9576,167.86,167.75,29.996284]
[1729606840025,5.9583,167.84,167.75,29.996284]
[1729606840833,5.9588,167.82,167.75,6.2194]
[1729606841039,20.0,167.87,167.75,6.2194]
[1729606841336,5.9601,167.79,167.7,6.5081]
[1729606841534,5.9594,167.81,167.7,6.6081]
[1729606841739,5.9577,167.85,167.72,0.1]
[1729606841913,5.9588,167.82,167.72,0.1]
[1729606842111,20.0,167.83,167.72,0.1]
[1729606842314,20.0,167.83,167.72,23.776884]
[1729606842540,5.9588,167.82,167.72,23.776884]
[1729606843515,20.0,167.86,167.72,23.776884]
[1729606843840,5.9584,167.83,167.72,23.876884]
[1729606844230,23.776884,167.89,167.74,23.776884]
[1729606844539,5.9564,167.89,167.76,23.776884]
[1729606845214,5.9564,167.89,167.78,23.776884]
[1729606845413,6.6645,167.91,167.78,23.776884]
[1729606845845,20.0,167.88,167.78,23.776884]
[1729606846339,15.929,167.93,167.78,23.876884]
[1729606846543,5.9558,167.91,167.8,23.776884]
[1729606846728,50.85352661,167.96,167.8,121.21213856]
[1729606846729,21.08372661,167.96,167.8,121.21213856]
[1729606846920,5.9548,167.94,167.82,23.776884]
[1729606847115,21.08372661,167.96,167.82,23.776884]
[1729606847116,5.9549,167.93,167.82,23.776884]
[1729606848221,20.0,167.93,167.82,23.776884]
[1729606848621,20.0,167.93,167.82,42.256884]
[1729606849242,5.9551,167.93,167.82,42.256884]
[1729606849445,5.9549,167.93,167.82,42.256884]
[1729606849744,20.0,167.92,167.82,42.256884]
[1729606849939,5.9549,167.93,167.82,42.356884]
[1729606850735,5.9549,167.93,167.82,42.256884]
[1729606850932,5.955,167.93,167.82,42.356884]
[1729606851623,5.955,167.93,167.82,42.256884]
[1729606851825,5.955,167.93,167.82,42.356884]
[1729606853230,5.955,167.93,167.82,42.256884]
[1729606853443,5.955,167.93,167.82,42.356884]
[1729606854226,6.19902661,167.96,167.82,18.48]
[1729606854427,5.9569,167.88,167.82,18.48]
[1729606854653,43.776884,167.95,167.79,21.8227]
[1729606854832,5.9568,167.88,167.79,21.8227]
[1729606855033,5.9571,167.87,167.79,21.8227]
[1729606855443,58.662484,167.95,167.79,21.8227]
[1729606855623,5.9554,167.92,167.8,65.71525456]
[1729606855828,5.9558,167.91,167.8,65.71525456]
[1729606856035,5.9565,167.89,167.8,38.48]
[1729606856328,5.9572,167.87,167.8,18.48]
[1729606856649,14.8889,167.91,167.8,18.48]
[1729606856955,43.776884,167.9,167.68,33.63655456]
[1729606857255,5.9591,167.81,167.69,18.59]
[1729606857725,14.8941,167.86,167.7,0.1]
[1729606857926,5.9581,167.84,167.72,70.1]
[1729606858141,38.667284,167.9,167.73,23.776884]
[1729606858346,20.0,167.85,167.73,0.1]
[1729606858560,21.57452661,167.96,167.82,23.776884]
[1729606858853,5.9552,167.92,167.82,23.776884]
[1729606859028,5.9547,167.94,167.82,23.776884]
[1729606859655,21.57452661,167.96,167.82,23.776884]
[1729606859957,20.0,167.92,167.82,23.776884]
[1729606860326,5.9555,167.91,167.82,23.776884]
[1729606861537,20.0,167.92,167.79,70.0]
[1729606861758,5.956,167.9,167.8,23.776884]
[1729606861932,20.0,167.91,167.8,23.776884]
[1729606862133,25.9556,167.91,167.8,23.776884]
[1729606862754,25.9556,167.91,167.76,22.2655]
[1729606862755,5.9583,167.84,167.76,6.479]
[1729606862956,34.8898,167.9,167.76,6.479]
[1729606863167,25.9574,167.86,167.76,6.479]
[1729606863343,5.9574,167.86,167.76,6.479]
[1729606863740,20.0,167.87,167.77,70.0]
[1729606863951,20.0,167.87,167.76,6.479]
[1729606864252,5.9573,167.86,167.77,23.776884]
[1729606865255,6.5734,167.85,167.72,15.2221]
[1729606865456,5.9597,167.8,167.72,15.2221]
[1729606865648,43.776884,167.84,167.71,6.4002]
[1729606865956,5.9603,167.78,167.71,6.4002]
[1729606866173,5.9598,167.79,167.71,6.4002]
[1729606866343,5.9595,167.8,167.71,6.4002]
[1729606867955,5.9591,167.81,167.72,23.776884]
[1729606868663,20.0,167.84,167.72,93.876884]
[1729606868840,21.2058,167.9,167.73,20.0]
[1729606869040,6.3154,167.9,167.76,23.776884]
[1729606869257,5.9573,167.86,167.76,23.776884]
[1729606869640,5.9562,167.89,167.78,23.776884]
[1729606869841,6.3154,167.9,167.78,23.776884]
[1729606870060,14.886,167.95,167.78,23.776884]
[1729606870061,6.3154,167.94,167.8,23.776884]
[1729606870266,5.9554,167.92,167.8,23.776884]
[1729606870435,5.9551,167.93,167.82,23.776884]
[1729606870644,5.9543,167.95,167.84,23.776884]
[1729606870865,0.05632661,167.96,167.88,43.776884]
[1729606871067,0.05632661,167.96,167.9,23.776884]
[1729606871474,0.05632661,167.96,167.93,23.776884]
[1729606871760,0.05632661,167.96,167.95,93.876884]
[1729606872162,0.05632661,167.96,167.95,93.776884]
[1729606872473,0.05632661,167.96,167.95,113.876884]
[1729606873746,0.05632661,167.96,167.95,132.336884]
[1729606874068,0.05632661,167.96,167.95,132.436884]
[1729606875138,0.05632661,167.96,167.95,132.336884]
[1729606875364,0.05632661,167.96,167.95,132.436884]
[1729606875543,5.9491,168.1,168.0,70.0]
[1729606875743,6.18781347,168.13,168.01,23.776884]
[1729606875949,5.9484,168.11,168.01,23.776884]
[1729606876853,5.9479,168.13,168.03,23.776884]
[1729606877035,5.9486,168.11,168.03,23.776884]
[1729606877438,21.7372,168.15,167.98,70.0]
[1729606877662,21.7372,168.15,167.99,20.0]
[1729606877663,23.776884,168.12,167.99,20.0]
[1729606877845,14.8712,168.11,167.99,20.0]
[1729606878055,5.9499,168.07,167.99,20.0]
[1729606878968,5.951,168.04,167.95,24.8968]
[1729606879260,5.951,168.04,167.96,20.0]
[1729606880057,5.9504,168.06,167.96,20.0]
[1729606880251,5.9491,168.09,167.99,20.0]
[1729606880965,5.9496,168.08,168.0,23.776884]
[1729606881372,14.8685,168.14,167.96,20.0]
[1729606881373,0.1,168.13,167.96,20.0]
[1729606881543,34.8725,168.1,167.96,20.0]
[1729606881745,20.0,168.08,167.96,90.0]
[1729606881978,5.9501,168.07,167.96,90.1]
[1729606882184,5.9501,168.07,167.96,90.0]
[1729606882478,5.9484,168.12,168.0,20.0]
[1729606882787,20.0,168.1,168.01,23.776884]
[1729606883078,20.0,168.13,168.01,23.776884]
[1729606883262,5.9492,168.09,168.01,23.776884]
[1729606884784,5.9492,168.09,168.0,23.776884]
[1729606885171,21.7372,168.15,168.03,43.776884]
[1729606885382,5.9481,168.12,168.03,43.776884]
[1729606886183,5.9479,168.13,168.03,43.776884]
[1729606886492,0.6262297,168.16,168.08,43.776884]
[1729606886493,6.5730297,168.16,168.08,43.776884]
[1729606886665,0.6262297,168.16,168.04,70.0]
[1729606886869,5.9481,168.12,168.05,23.776884]
[1729606888675,5.9473,168.15,168.05,23.776884]
[1729606888861,6.5732297,168.16,168.07,23.776884]
[1729606889261,5.9471,168.15,168.07,23.776884]
[1729606889462,5.9471,168.15,168.06,70.0]
[1729606889463,0.6262297,168.16,168.04,23.776884]
[1729606889670,0.6262297,168.16,168.03,20.0]
[1729606889872,5.9484,168.12,168.04,23.776884]
[1729606890087,20.0,168.14,168.04,23.776884]
[1729606890274,20.0,168.12,167.99,70.0]
[1729606890586,5.9505,168.06,167.97,70.0]
[1729606891581,14.8712,168.11,167.97,70.0]
[1729606891881,5.9503,168.06,167.98,20.0]
[1729606892080,5.9491,168.1,168.0,70.0]
[1729606892264,5.9491,168.1,168.01,43.776884]
[1729606892459,0.6262297,168.16,168.03,23.776884]
[1729606892664,5.9484,168.12,168.03,23.776884]
[1729606892875,0.6262297,168.16,168.05,23.776884]
[1729606893072,5.947,168.15,168.05,93.776884]
[1729606893382,5.947,168.15,168.06,20.0]
[1729606893579,5.947,168.15,168.07,23.776884]
[1729606894169,0.6262297,168.16,168.09,23.776884]
[1729606894692,0.6262297,168.16,168.11,23.776884]
[1729606895680,0.6262297,168.16,168.13,23.776884]
[1729606897564,0.6262297,168.16,168.12,20.0]
[1729606897801,0.6262297,168.16,168.06,76.41]
[1729606898297,0.6262297,168.16,168.08,70.0]
[1729606898504,5.9472,168.15,168.06,70.0]